fUST/lending_fUST_20260528
["ID","MTS","AMOUNT","RATE_DAILY","PERIOD"]
[423169635,1779900654000,-1139.0192,0.00011232,2]
[423169626,1779900654000,-578.96,0.00011232,2]
[423169632,1779900654000,-2065.2,0.00011232,2]
[423169619,1779900654000,-500.0,0.00011232,2]
[423169621,1779900654000,-500.0,0.00011232,2]
[423169630,1779900654000,-1541.43,0.00011232,2]
[423169644,1779900654000,-500.0,0.00011232,2]
[423169633,1779900654000,-1290.39,0.00011232,2]
[423169646,1779900654000,-613.25,0.00011232,2]
[423169665,1779900654000,-1791.1,0.00011232,2]
[423169652,1779900654000,-680.09,0.00011232,2]
[423169654,1779900654000,-639.51,0.00011232,2]
[423169650,1779900654000,-610.8,0.00011232,2]
[423169656,1779900654000,-607.13,0.00011232,2]
[423169658,1779900654000,-628.44,0.00011232,2]
[423169659,1779900654000,-500.0,0.00011232,2]
[423169672,1779900654000,-500.0,0.00011232,2]
[423169673,1779900654000,-601.42,0.00011232,2]
[423169661,1779900654000,-1885.77,0.00011232,2]
[423169676,1779900654000,-500.0,0.00011232,2]
[423169678,1779900654000,-219.68,0.00011265,2]
[423169668,1779900654000,-500.0,0.00011232,2]
[423169613,1779900654000,-500.0,0.00011232,2]
[423169648,1779900654000,-500.0,0.00011232,2]
[423169617,1779900654000,-500.0,0.00011232,2]
[423169577,1779900654000,-1791.1,0.00010958,2]
[423169611,1779900654000,-500.0,0.00011232,2]
[423169575,1779900654000,-1175.17,0.00010958,2]
[423169578,1779900654000,-595.68,0.00010958,2]
[423169581,1779900654000,-543.06,0.00010958,2]
[423169582,1779900654000,-500.0,0.00010958,2]
[423169580,1779900654000,-500.0,0.00010958,2]
[423169585,1779900654000,-603.64,0.00010958,2]
[423169584,1779900654000,-601.42,0.00010958,2]
[423169589,1779900654000,-500.0,0.00010991,2]
[423169588,1779900654000,-9074.9670476,0.00010959,2]
[423169587,1779900654000,-500.0,0.00010958,2]
[423169591,1779900654000,-500.0,0.00010992,2]
[423169594,1779900654000,-676.69,0.00010992,2]
[423169593,1779900654000,-500.0,0.00010992,2]
[423169615,1779900654000,-714.35,0.00011232,2]
[423169596,1779900654000,-500.0,0.00010992,2]
[423169598,1779900654000,-500.0,0.00010992,2]
[423169601,1779900654000,-5008.30502997,0.00011071,2]
[423169606,1779900654000,-5000.0,0.00011071,2]
[423169602,1779900654000,-5000.0,0.00011071,2]
[423169600,1779900654000,-240.42463964,0.00011,2]
[423169609,1779900654000,-504.4877354,0.00011168,2]
[423169605,1779900654000,-5000.0,0.00011071,2]
[423169604,1779900654000,-5000.0,0.00011071,2]
[423169608,1779900654000,-570.68125611,0.00011168,2]
[423169663,1779900654000,-1175.17,0.00011232,2]
[423169624,1779900654000,-501.03,0.00011232,2]
[423169623,1779900654000,-675.6,0.00011232,2]
[423169628,1779900654000,-428.36,0.00011232,2]
[423169597,1779900654000,-500.0,0.00010992,2]
[423169666,1779900654000,-595.68,0.00011232,2]
[423169751,1779900654000,-610.8,0.00011506,2]
[423169680,1779900654000,-500.0,0.00011266,2]
[423169747,1779900654000,-613.25,0.00011506,2]
[423169753,1779900654000,-680.09,0.00011506,2]
[423169754,1779900654000,-639.51,0.00011506,2]
[423169757,1779900654000,-607.13,0.00011506,2]
[423169763,1779900654000,-1175.17,0.00011506,2]
[423169770,1779900654000,-543.06,0.00011506,2]
[423169759,1779900654000,-500.0,0.00011506,2]
[423169761,1779900654000,-1885.77,0.00011506,2]
[423169768,1779900654000,-500.0,0.00011506,2]
[423169767,1779900654000,-595.68,0.00011506,2]
[423169765,1779900654000,-1791.1,0.00011506,2]
[423169772,1779900654000,-500.0,0.00011506,2]
[423169776,1779900654000,-500.0,0.00011506,2]
[423169778,1779900654000,-281.0,0.00011507,3]
[423169782,1779900654000,-285.30003306,0.0001154,2]
[423169780,1779900654000,-2481.68535103,0.00011514,2]
[423169784,1779900654000,-500.0,0.0001154,2]
[423169786,1779900654000,-676.69,0.0001154,2]
[423169794,1779900654000,-411.45,0.0001178,2]
[423169788,1779900654000,-3110.61426841,0.0001156,2]
[423169798,1779900654000,-714.35,0.0001178,2]
[423169792,1779900654000,-794.0,0.000117,2]
[423169790,1779900654000,-1462.89995697,0.00011605,2]
[423169796,1779900654000,-500.0,0.0001178,2]
[423169800,1779900654000,-354.65,0.0001178,2]
[423169802,1779900654000,-500.0,0.0001178,2]
[423169670,1779900654000,-543.06,0.00011232,2]
[423169745,1779900654000,-530.56,0.00011506,2]
[423169744,1779900654000,-1056.19,0.00011506,2]
[423169774,1779900654000,-601.42,0.00011506,2]
[423169749,1779900654000,-500.0,0.00011506,2]
[423169738,1779900654000,-631.52,0.00011506,2]
[423169684,1779900654000,-676.69,0.00011266,2]
[423169695,1779900654000,-150.30811288,0.000114,2]
[423169693,1779900654000,-368.033,0.000114,2]
[423169702,1779900654000,-2258.0,0.00011478,2]
[423169704,1779900654000,-159750.57532814,0.000115,2]
[423169691,1779900654000,-399.89903218,0.00011329,2]
[423169686,1779900654000,-500.0,0.00011266,2]
[423169687,1779900654000,-534.72,0.00011266,2]
[423169689,1779900654000,-151.95,0.00011266,2]
[423169706,1779900654000,-1673.71585528,0.000115,2]
[423169707,1779900654000,-900.86901366,0.000115,2]
[423169711,1779900654000,-500.0,0.00011506,2]
[423169709,1779900654000,-622.4699691,0.000115,2]
[423169681,1779900654000,-500.0,0.00011266,2]
[423169740,1779900654000,-576.11,0.00011506,2]
[423169742,1779900654000,-500.0,0.00011506,2]
[423169736,1779900654000,-1139.0192,0.00011506,2]
[423169733,1779900654000,-2065.2,0.00011506,2]
[423169714,1779900654000,-500.0,0.00011506,2]
[423169724,1779900654000,-675.6,0.00011506,2]
[423169728,1779900654000,-578.96,0.00011506,2]
[423169735,1779900654000,-1290.39,0.00011506,2]
[423169718,1779900654000,-500.0,0.00011506,2]
[423169722,1779900654000,-500.0,0.00011506,2]
[423169726,1779900654000,-501.03,0.00011506,2]
[423169720,1779900654000,-500.0,0.00011506,2]
[423169716,1779900654000,-714.35,0.00011506,2]
[423169730,1779900654000,-1541.43,0.00011506,2]
[423169882,1779900655000,-714.35,0.00012054,2]
[423169884,1779900655000,-578.17,0.00012054,2]
[423169885,1779900655000,-500.0,0.00012054,2]
[423169880,1779900655000,-500.0,0.00012054,2]
[423169876,1779900655000,-151.12,0.00012,2]
[423169870,1779900655000,-150.92,0.00012,2]
[423169864,1779900655000,-151.21,0.00012,2]
[423169866,1779900655000,-150.92,0.00012,2]
[423169872,1779900655000,-150.92,0.00012,2]
[423169868,1779900655000,-150.92,0.00012,2]
[423169874,1779900655000,-151.12,0.00012,2]
[423169893,1779900655000,-1541.43,0.00012054,2]
[423169878,1779900655000,-326.0270599,0.00012037,2]
[423169887,1779900655000,-675.6,0.00012054,2]
[423169903,1779900655000,-576.11,0.00012054,2]
[423169891,1779900655000,-578.96,0.00012054,2]
[423169902,1779900655000,-631.52,0.00012054,2]
[423169898,1779900655000,-1290.39,0.00012054,2]
[423169904,1779900655000,-500.0,0.00012054,2]
[423169896,1779900655000,-2065.2,0.00012054,2]
[423169900,1779900655000,-1139.0192,0.00012054,2]
[423169906,1779900655000,-613.25,0.00012054,2]
[423169918,1779900655000,-500.0,0.00012054,2]
[423169909,1779900655000,-639.51,0.00012054,2]
[423169905,1779900655000,-1056.19,0.00012054,2]
[423169913,1779900655000,-1175.17,0.00012054,2]
[423169907,1779900655000,-610.8,0.00012054,2]
[423169911,1779900655000,-500.0,0.00012054,2]
[423169889,1779900655000,-501.03,0.00012054,2]
[423169862,1779900655000,-151.21,0.00012,2]
[423169815,1779900655000,-1290.39,0.0001178,2]
[423169860,1779900655000,-172.93610253,0.0001197,13]
[423169916,1779900655000,-500.0,0.00012054,2]
[423169804,1779900655000,-500.0,0.0001178,2]
[423169805,1779900655000,-675.6,0.0001178,2]
[423169811,1779900655000,-1541.43,0.0001178,2]
[423169807,1779900655000,-501.03,0.0001178,2]
[423169809,1779900655000,-578.96,0.0001178,2]
[423169820,1779900655000,-576.11,0.0001178,2]
[423169819,1779900655000,-631.52,0.0001178,2]
[423169813,1779900655000,-2065.2,0.0001178,2]
[423169822,1779900655000,-500.0,0.0001178,2]
[423169824,1779900655000,-1056.19,0.0001178,2]
[423169828,1779900655000,-540.35,0.0001178,2]
[423169826,1779900655000,-613.25,0.0001178,2]
[423169856,1779900655000,-500.0,0.00011814,2]
[423169834,1779900655000,-639.51,0.0001178,2]
[423169850,1779900655000,-500.0,0.0001178,2]
[423169836,1779900655000,-607.13,0.0001178,2]
[423169838,1779900655000,-500.0,0.0001178,2]
[423169839,1779900655000,-1885.77,0.0001178,2]
[423169852,1779900655000,-601.42,0.0001178,2]
[423169830,1779900655000,-610.8,0.0001178,2]
[423169848,1779900655000,-543.06,0.0001178,2]
[423169845,1779900655000,-595.68,0.0001178,2]
[423169843,1779900655000,-1791.1,0.0001178,2]
[423169847,1779900655000,-500.0,0.0001178,2]
[423169841,1779900655000,-1175.17,0.0001178,2]
[423169854,1779900655000,-500.0,0.0001178,2]
[423169858,1779900655000,-676.69,0.00011814,2]
[423169832,1779900655000,-680.09,0.0001178,2]
[423169910,1779900655000,-607.13,0.00012054,2]
[423169817,1779900655000,-1139.0192,0.0001178,2]
[423169908,1779900655000,-680.09,0.00012054,2]
[423169954,1779900655000,-1791.1,0.00012328,2]
[423169959,1779900655000,-543.06,0.00012328,2]
[423169960,1779900655000,-500.0,0.00012328,2]
[423169962,1779900655000,-601.42,0.00012328,2]
[423169963,1779900655000,-500.0,0.00012328,2]
[423169965,1779900655000,-676.69,0.00012362,2]
[423169968,1779900655000,-195.31171364,0.00012365,5]
[423169966,1779900655000,-157.79160527,0.00012365,2]
[423169964,1779900655000,-500.0,0.00012362,2]
[423169976,1779900655000,-352.977779,0.00012514,2]
[423169967,1779900655000,-194.51953458,0.00012365,7]
[423169975,1779900655000,-172.93610253,0.00012441,15]
[423169970,1779900655000,-216.53393936,0.00012377,2]
[423169956,1779900655000,-595.68,0.00012328,2]
[423169974,1779900655000,-242.8059,0.00012433,2]
[423169977,1779900655000,-714.35,0.00012602,2]
[423169973,1779900655000,-201.40295,0.00012433,2]
[423169978,1779900655000,-500.0,0.00012602,2]
[423169979,1779900655000,-675.6,0.00012602,2]
[423169981,1779900655000,-578.96,0.00012602,2]
[423169980,1779900655000,-501.03,0.00012602,2]
[423169987,1779900655000,-576.11,0.00012602,2]
[423169988,1779900655000,-1056.19,0.00012602,2]
[423169983,1779900655000,-2065.2,0.00012602,2]
[423169984,1779900655000,-1290.39,0.00012602,2]
[423169986,1779900655000,-631.52,0.00012602,2]
[423169985,1779900655000,-1139.0192,0.00012602,2]
[423169917,1779900655000,-543.06,0.00012054,2]
[423169972,1779900655000,-160.0,0.00012433,2]
[423169952,1779900655000,-1175.17,0.00012328,2]
[423169982,1779900655000,-1541.43,0.00012602,2]
[423169950,1779900655000,-1885.77,0.00012328,2]
[423169912,1779900655000,-1885.77,0.00012054,2]
[423169915,1779900655000,-595.68,0.00012054,2]
[423169914,1779900655000,-1791.1,0.00012054,2]
[423169919,1779900655000,-601.42,0.00012054,2]
[423169920,1779900655000,-500.0,0.00012054,2]
[423169921,1779900655000,-500.0,0.00012088,2]
[423169922,1779900655000,-676.69,0.00012088,2]
[423169923,1779900655000,-2515.48257079,0.00012166,2]
[423169957,1779900655000,-500.0,0.00012328,2]
[423169930,1779900655000,-578.96,0.00012328,2]
[423169924,1779900655000,-324.76143799,0.00012262,2]
[423169926,1779900655000,-714.35,0.00012328,2]
[423169925,1779900655000,-435.75,0.00012328,2]
[423169928,1779900655000,-675.6,0.00012328,2]
[423169931,1779900655000,-1541.43,0.00012328,2]
[423169929,1779900655000,-501.03,0.00012328,2]
[423169938,1779900655000,-324.72,0.00012328,2]
[423169927,1779900655000,-500.0,0.00012328,2]
[423169941,1779900655000,-613.25,0.00012328,2]
[423169942,1779900655000,-610.8,0.00012328,2]
[423169936,1779900655000,-576.11,0.00012328,2]
[423169935,1779900655000,-631.52,0.00012328,2]
[423169939,1779900655000,-1056.19,0.00012328,2]
[423169947,1779900655000,-607.13,0.00012328,2]
[423169949,1779900655000,-500.0,0.00012328,2]
[423169932,1779900655000,-2065.2,0.00012328,2]
[423169943,1779900655000,-680.09,0.00012328,2]
[423169945,1779900655000,-639.51,0.00012328,2]
[423169933,1779900655000,-1290.39,0.00012328,2]
[423169934,1779900655000,-1139.0192,0.00012328,2]
[423170026,1779900656000,-639.51,0.00012876,2]
[423170031,1779900656000,-1791.1,0.00012876,2]
[423170027,1779900656000,-607.13,0.00012876,2]
[423170028,1779900656000,-500.0,0.00012876,2]
[423170024,1779900656000,-610.8,0.00012876,2]
[423170021,1779900656000,-576.11,0.00012876,2]
[423170023,1779900656000,-613.25,0.00012876,2]
[423170022,1779900656000,-1056.19,0.00012876,2]
[423170020,1779900656000,-631.52,0.00012876,2]
[423170018,1779900656000,-1290.39,0.00012876,2]
[423170025,1779900656000,-680.09,0.00012876,2]
[423170033,1779900656000,-303.44,0.00012876,2]
[423170044,1779900656000,-389.03906915,0.00013013,7]
[423170036,1779900656000,-500.0,0.00012876,2]
[423170043,1779900656000,-315.58321054,0.00013013,2]
[423170032,1779900656000,-595.68,0.00012876,2]
[423170042,1779900656000,-185.70087379,0.00013013,7]
[423170035,1779900656000,-601.42,0.00012876,2]
[423170037,1779900656000,-500.0,0.0001291,2]
[423170038,1779900656000,-676.69,0.0001291,2]
[423170039,1779900656000,-172.93610253,0.00012911,17]
[423170040,1779900656000,-1352.39212201,0.00013,2]
[423170041,1779900656000,-191.0,0.0001301,2]
[423170055,1779900656000,-1290.39,0.0001315,2]
[423170045,1779900656000,-390.62342729,0.00013013,5]
[423170019,1779900656000,-1139.0192,0.00012876,2]
[423170034,1779900656000,-543.06,0.00012876,2]
[423170030,1779900656000,-1175.17,0.00012876,2]
[423170004,1779900656000,-176.0,0.00012603,3]
[423170013,1779900656000,-675.6,0.00012876,2]
[423170046,1779900656000,-240.58620915,0.00013015,2]
[423169991,1779900656000,-680.09,0.00012602,2]
[423169990,1779900656000,-610.8,0.00012602,2]
[423169989,1779900656000,-613.25,0.00012602,2]
[423169993,1779900656000,-607.13,0.00012602,2]
[423170001,1779900656000,-441.64,0.00012602,2]
[423169992,1779900656000,-639.51,0.00012602,2]
[423169994,1779900656000,-500.0,0.00012602,2]
[423170003,1779900656000,-500.0,0.00012602,2]
[423170002,1779900656000,-601.42,0.00012602,2]
[423169995,1779900656000,-1885.77,0.00012602,2]
[423169996,1779900656000,-1175.17,0.00012602,2]
[423169999,1779900656000,-500.0,0.00012602,2]
[423170029,1779900656000,-1885.77,0.00012876,2]
[423169997,1779900656000,-1791.1,0.00012602,2]
[423170000,1779900656000,-543.06,0.00012602,2]
[423170015,1779900656000,-578.96,0.00012876,2]
[423170016,1779900656000,-1541.43,0.00012876,2]
[423170005,1779900656000,-1749.0,0.00012626,2]
[423170012,1779900656000,-500.0,0.00012876,2]
[423170006,1779900656000,-500.0,0.00012636,2]
[423170008,1779900656000,-281.96413,0.0001274,2]
[423170011,1779900656000,-714.35,0.00012876,2]
[423170009,1779900656000,-2855.59927608,0.00012817,2]
[423170007,1779900656000,-676.69,0.00012636,2]
[423170017,1779900656000,-2065.2,0.00012876,2]
[423170014,1779900656000,-501.03,0.00012876,2]
[423170010,1779900656000,-241.68354,0.00012838,2]
[423169998,1779900656000,-595.68,0.00012602,2]
[423170047,1779900656000,-1352.39212201,0.000131,2]
[423170052,1779900656000,-578.96,0.0001315,2]
[423170051,1779900656000,-501.03,0.0001315,2]
[423170083,1779900656000,-174.41855453,0.00013417,7]
[423170086,1779900656000,-501.03,0.00013424,2]
[423170085,1779900656000,-675.6,0.00013424,2]
[423170088,1779900656000,-1541.43,0.00013424,2]
[423170089,1779900656000,-2065.2,0.00013424,2]
[423170090,1779900656000,-1290.39,0.00013424,2]
[423170091,1779900656000,-1139.0192,0.00013424,2]
[423170087,1779900656000,-578.96,0.00013424,2]
[423170093,1779900656000,-576.11,0.00013424,2]
[423170092,1779900656000,-631.52,0.00013424,2]
[423170094,1779900656000,-1056.19,0.00013424,2]
[423170095,1779900656000,-613.25,0.00013424,2]
[423170102,1779900656000,-1175.17,0.00013424,2]
[423170101,1779900656000,-1885.77,0.00013424,2]
[423170097,1779900656000,-680.09,0.00013424,2]
[423170098,1779900656000,-639.51,0.00013424,2]
[423170100,1779900656000,-500.0,0.00013424,2]
[423170099,1779900656000,-607.13,0.00013424,2]
[423170096,1779900656000,-610.8,0.00013424,2]
[423170104,1779900656000,-595.68,0.00013424,2]
[423170105,1779900656000,-601.42,0.00013424,2]
[423170103,1779900656000,-1791.1,0.00013424,2]
[423170049,1779900656000,-264.2,0.0001315,2]
[423170108,1779900656000,-207.40917178,0.00013446,2]
[423170107,1779900656000,-500.0,0.00013424,2]
[423170109,1779900656000,-473.37481581,0.00013446,2]
[423170110,1779900656000,-198.44634204,0.00013446,7]
[423170084,1779900656000,-714.35,0.00013424,2]
[423170082,1779900656000,-231.43275119,0.00013417,7]
[423170106,1779900656000,-543.06,0.00013424,2]
[423170075,1779900656000,-1352.39212201,0.000133,2]
[423170077,1779900656000,-172.93610253,0.00013382,20]
[423170048,1779900656000,-714.35,0.0001315,2]
[423170054,1779900656000,-2065.2,0.0001315,2]
[423170053,1779900656000,-1541.43,0.0001315,2]
[423170056,1779900656000,-1139.0192,0.0001315,2]
[423170058,1779900656000,-576.11,0.0001315,2]
[423170060,1779900656000,-613.25,0.0001315,2]
[423170059,1779900656000,-1056.19,0.0001315,2]
[423170062,1779900656000,-680.09,0.0001315,2]
[423170067,1779900656000,-1175.17,0.0001315,2]
[423170065,1779900656000,-500.0,0.0001315,2]
[423170063,1779900656000,-639.51,0.0001315,2]
[423170061,1779900656000,-610.8,0.0001315,2]
[423170057,1779900656000,-631.52,0.0001315,2]
[423170050,1779900656000,-675.6,0.0001315,2]
[423170066,1779900656000,-1885.77,0.0001315,2]
[423170064,1779900656000,-607.13,0.0001315,2]
[423170076,1779900656000,-449.00499692,0.00013365,14]
[423170071,1779900656000,-543.06,0.0001315,2]
[423170072,1779900656000,-500.0,0.0001315,2]
[423170073,1779900656000,-500.0,0.00013184,2]
[423170078,1779900656000,-500.0,0.00013391,2]
[423170070,1779900656000,-601.42,0.0001315,2]
[423170069,1779900656000,-595.68,0.0001315,2]
[423170081,1779900656000,-288.39658361,0.00013417,4]
[423170068,1779900656000,-1791.1,0.0001315,2]
[423170074,1779900656000,-676.69,0.00013184,2]
[423170079,1779900656000,-1352.39212201,0.000134,2]
[423170080,1779900656000,-275.75461479,0.00013417,7]
[423170143,1779900657000,-595.68,0.00013698,2]
[423170152,1779900657000,-230.843984,0.00013699,2]
[423170151,1779900657000,-230.843984,0.00013699,2]
[423170150,1779900657000,-230.843984,0.00013699,2]
[423170141,1779900657000,-1175.17,0.00013698,2]
[423170147,1779900657000,-180.0,0.00013699,2]
[423170142,1779900657000,-1791.1,0.00013698,2]
[423170144,1779900657000,-601.42,0.00013698,2]
[423170145,1779900657000,-543.06,0.00013698,2]
[423170139,1779900657000,-500.0,0.00013698,2]
[423170140,1779900657000,-1885.77,0.00013698,2]
[423170164,1779900657000,-230.843984,0.00013699,2]
[423170148,1779900657000,-1000.0,0.00013699,2]
[423170149,1779900657000,-230.843984,0.00013699,2]
[423170153,1779900657000,-230.843984,0.00013699,2]
[423170155,1779900657000,-230.843984,0.00013699,2]
[423170159,1779900657000,-230.843984,0.00013699,2]
[423170154,1779900657000,-230.843984,0.00013699,2]
[423170156,1779900657000,-230.843984,0.00013699,2]
[423170160,1779900657000,-230.843984,0.00013699,2]
[423170157,1779900657000,-230.843984,0.00013699,2]
[423170133,1779900657000,-1056.19,0.00013698,2]
[423170146,1779900657000,-500.0,0.00013698,2]
[423170136,1779900657000,-680.09,0.00013698,2]
[423170119,1779900657000,-676.69,0.00013458,2]
[423170129,1779900657000,-1290.39,0.00013698,2]
[423170113,1779900657000,-585.93514093,0.00013446,5]
[423170111,1779900657000,-245.57860721,0.00013446,2]
[423170112,1779900657000,-583.55860373,0.00013446,7]
[423170114,1779900657000,-481.17241831,0.00013447,2]
[423170116,1779900657000,-443.0,0.00013453,2]
[423170117,1779900657000,-371.40174757,0.00013457,7]
[423170121,1779900657000,-1352.39212201,0.000135,2]
[423170115,1779900657000,-185.0,0.00013453,2]
[423170122,1779900657000,-155.99487947,0.00013664,5]
[423170124,1779900657000,-675.6,0.00013698,2]
[423170118,1779900657000,-500.0,0.00013458,2]
[423170125,1779900657000,-501.03,0.00013698,2]
[423170123,1779900657000,-714.35,0.00013698,2]
[423170158,1779900657000,-230.843984,0.00013699,2]
[423170126,1779900657000,-578.96,0.00013698,2]
[423170128,1779900657000,-2065.2,0.00013698,2]
[423170138,1779900657000,-607.13,0.00013698,2]
[423170130,1779900657000,-1139.0192,0.00013698,2]
[423170127,1779900657000,-1541.43,0.00013698,2]
[423170135,1779900657000,-610.8,0.00013698,2]
[423170131,1779900657000,-631.52,0.00013698,2]
[423170132,1779900657000,-576.11,0.00013698,2]
[423170134,1779900657000,-613.25,0.00013698,2]
[423170137,1779900657000,-639.51,0.00013698,2]
[423170162,1779900657000,-230.843984,0.00013699,2]
[423170120,1779900657000,-2864.30254911,0.00013468,2]
[423170163,1779900657000,-230.843984,0.00013699,2]
[423170194,1779900657000,-151.0,0.00013699,2]
[423170193,1779900657000,-151.0,0.00013699,2]
[423170195,1779900657000,-151.0,0.00013699,2]
[423170200,1779900657000,-151.0,0.00013699,2]
[423170196,1779900657000,-151.0,0.00013699,2]
[423170199,1779900657000,-151.0,0.00013699,2]
[423170198,1779900657000,-151.0,0.00013699,2]
[423170197,1779900657000,-151.0,0.00013699,2]
[423170201,1779900657000,-151.0,0.00013699,2]
[423170202,1779900657000,-151.0,0.00013699,2]
[423170207,1779900657000,-151.0,0.00013699,2]
[423170204,1779900657000,-151.0,0.00013699,2]
[423170205,1779900657000,-269.94807,0.00013699,2]
[423170210,1779900657000,-151.0,0.00013699,2]
[423170209,1779900657000,-151.0,0.00013699,2]
[423170211,1779900657000,-151.0,0.00013699,2]
[423170208,1779900657000,-151.0,0.00013699,2]
[423170206,1779900657000,-151.0,0.00013699,2]
[423170212,1779900657000,-151.0,0.00013699,2]
[423170215,1779900657000,-726.967063,0.00013699,2]
[423170214,1779900657000,-3176.391387,0.00013699,2]
[423170213,1779900657000,-276.218108,0.00013699,2]
[423170161,1779900657000,-230.843984,0.00013699,2]
[423170191,1779900657000,-151.0,0.00013699,2]
[423170192,1779900657000,-151.0,0.00013699,2]
[423170203,1779900657000,-151.0,0.00013699,2]
[423170190,1779900657000,-151.0,0.00013699,2]
[423170189,1779900657000,-151.0,0.00013699,2]
[423170166,1779900657000,-230.843984,0.00013699,2]
[423170165,1779900657000,-230.843984,0.00013699,2]
[423170167,1779900657000,-230.843984,0.00013699,2]
[423170168,1779900657000,-230.843981,0.00013699,2]
[423170172,1779900657000,-285.986377,0.00013699,2]
[423170173,1779900657000,-285.986377,0.00013699,2]
[423170169,1779900657000,-285.986377,0.00013699,2]
[423170171,1779900657000,-285.986377,0.00013699,2]
[423170175,1779900657000,-285.986377,0.00013699,2]
[423170174,1779900657000,-285.986377,0.00013699,2]
[423170170,1779900657000,-285.986377,0.00013699,2]
[423170176,1779900657000,-285.986377,0.00013699,2]
[423170188,1779900657000,-285.98637,0.00013699,2]
[423170180,1779900657000,-285.986377,0.00013699,2]
[423170181,1779900657000,-285.986377,0.00013699,2]
[423170185,1779900657000,-285.986377,0.00013699,2]
[423170184,1779900657000,-285.986377,0.00013699,2]
[423170178,1779900657000,-285.986377,0.00013699,2]
[423170182,1779900657000,-285.986377,0.00013699,2]
[423170179,1779900657000,-285.986377,0.00013699,2]
[423170183,1779900657000,-285.986377,0.00013699,2]
[423170187,1779900657000,-285.986377,0.00013699,2]
[423170186,1779900657000,-285.986377,0.00013699,2]
[423170177,1779900657000,-285.986377,0.00013699,2]
[423170248,1779900658000,-526.696223,0.00013699,2]
[423170246,1779900658000,-526.696223,0.00013699,2]
[423170247,1779900658000,-526.696223,0.00013699,2]
[423170245,1779900658000,-526.696223,0.00013699,2]
[423170241,1779900658000,-526.696223,0.00013699,2]
[423170256,1779900658000,-526.696223,0.00013699,2]
[423170255,1779900658000,-526.696223,0.00013699,2]
[423170254,1779900658000,-526.696223,0.00013699,2]
[423170237,1779900658000,-259.930067,0.00013699,2]
[423170251,1779900658000,-526.696223,0.00013699,2]
[423170257,1779900658000,-526.696223,0.00013699,2]
[423170249,1779900658000,-526.696223,0.00013699,2]
[423170260,1779900658000,-234.608823,0.00013699,2]
[423170253,1779900658000,-526.696223,0.00013699,2]
[423170250,1779900658000,-526.696223,0.00013699,2]
[423170261,1779900658000,-234.608823,0.00013699,2]
[423170258,1779900658000,-526.696223,0.00013699,2]
[423170263,1779900658000,-234.608823,0.00013699,2]
[423170262,1779900658000,-234.608823,0.00013699,2]
[423170269,1779900658000,-234.608823,0.00013699,2]
[423170265,1779900658000,-234.608823,0.00013699,2]
[423170266,1779900658000,-234.608823,0.00013699,2]
[423170268,1779900658000,-234.608823,0.00013699,2]
[423170259,1779900658000,-526.696219,0.00013699,2]
[423170252,1779900658000,-526.696223,0.00013699,2]
[423170244,1779900658000,-526.696223,0.00013699,2]
[423170218,1779900658000,-726.967063,0.00013699,2]
[423170239,1779900658000,-184.10991,0.00013699,2]